Cogmind - Beta 14 X2 @@@ ROGUE MODE // 2024.08.06 @ 11:47:03 Player: UnifiBg Result: Destroyed by G-34 Mercenary with Small Laser Performance ------------- Evolutions (1) 500 Regions Visited (3) 600 Robots Destroyed (88) 440 Value Destroyed (1890) 1890 Prototype IDs (5) 100 Alien Tech Used (0) 0 Bonus (97) 97 TOTAL SCORE: 3627 Bonus ------- High Alert Combat Kills 97 Cogmind --------- Core Integrity 0/400 Matter 211/300 Energy 277/280 System Corruption 0% Temperature Cool (6) Movement Rolling (96) Location -9/Storage Parts ------- > --- POWER (1) -------- Cooled Ion Engine > --- PROPULSION (3) --- Compact Wheel Compact Wheel Armored Wheel > --- UTILITY (3) ------ Large Storage Unit Sensor Array Signal Interpreter > --- WEAPON (2) ------- Flak Cannon Mini Grenade Launcher > --- INVENTORY (15) --- Improved Ion Engine Improved Ion Engine Cooled Ion Engine Wheel Wheel Compact Wheel High-capacity Matter Pod (200) Visual Processing Unit Improved Medium Laser Advanced Beam Cannon Heavy Assault Rifle Improved Assault Rifle Improved Assault Rifle Flak Cannon Great Maul Peak State ------------ > --- POWER ------------ Cooled Ion Engine > --- PROPULSION ------- Compact Wheel Compact Wheel Armored Wheel > --- UTILITY ---------- Large Storage Unit Sensor Array Signal Interpreter > --- WEAPON ----------- Advanced Beam Cannon Flak Cannon > --- INVENTORY -------- Improved Ion Engine Improved Ion Engine Cooled Ion Engine Wheel Wheel Compact Wheel High-capacity Matter Pod Visual Processing Unit Improved Medium Laser Heavy Assault Rifle Improved Assault Rifle Improved Assault Rifle Flak Cannon Mini Grenade Launcher Great Maul [Rating: 19] Favorites ----------- Power Ion Engine Engine Ion Engine Propulsion Wheel Wheel Wheel Utility Sensor Array Device Sensor Array Storage Large Storage Unit Processor Signal Interpreter Weapon Light Assault Rifle Energy Gun Medium Laser Energy Cannon Advanced Beam Cannon Ballistic Gun Light Assault Rifle Ballistic Cannon Flak Cannon Launcher Grenade Launcher Impact Weapon Great Maul Build | -11 -10 -9 -9 ------- Run | Yrd Mat Mat Sto Slots Evolved 2 | . . 2 . Power . | . . . . Propulsion 1 | . . 1 . Utility 1 | . . 1 . Weapon . | . . . . Parts Attached 67 | 7 14 32 14 Power 8 | 1 1 4 2 Engine 8 | 1 1 4 2 Core . | . . . . Reactor . | . . . . Propulsion 24 | 2 2 16 4 Treads . | . . . . Leg . | . . . . Wheel 24 | 2 2 16 4 Hover . | . . . . Flight . | . . . . Utility 10 | 2 4 4 . Device 6 | 1 3 2 . Storage 3 | 1 1 1 . Processor 1 | . . 1 . Hackware . | . . . . Protection . | . . . . Artifact . | . . . . Weapon 25 | 2 7 8 8 Energy Gun 4 | 1 . 2 1 Energy Cannon 2 | . . 1 1 Ballistic Gun 6 | 1 3 2 . Ballistic Cannon 4 | . 1 2 1 Launcher 7 | . 3 1 3 Special Weapon . | . . . . Impact Weapon 2 | . . . 2 Slashing Weapon . | . . . . Piercing Weapon . | . . . . Special Melee Weapon . | . . . . Unidentified Prototypes 5 | . . 4 1 Parts Lost 6 | . . 4 2 Power 1 | . . . 1 Propulsion 3 | . . 2 1 Utility . | . . . . Weapon 2 | . . 2 . Highest Loss Streak 2 | . . 2 1 To Critical Strikes . | . . . . Average Slot Usage (%) 99 | . 100 99 99 Engine 12 | . 14 11 10 Wheel 30 | . 28 32 32 Device 12 | . 14 12 11 Storage 12 | . 14 11 11 Processor 5 | . . 8 11 Energy Gun 1 | . 2 2 . Energy Cannon 2 | . . 5 . Ballistic Gun 7 | . 10 6 3 Ballistic Cannon 7 | . 3 6 13 Launcher 5 | . 11 . 2 Naked Turns . | . . . . Heaviest Build 41 | 14 22 38 41 Greatest Support 48 | 20 20 48 44 Greatest Overweight (x) 1 | 1 1 1 1 Average Overweight (x) . | . . . . Largest Inventory Capacity 15 | 8 10 15 15 Average Capacity 11 | 7 9 13 15 Most Carried 15 | 8 10 15 15 Average Carried 11 | 5 9 13 14 Final Capacity 15 | 8 10 15 15 Final Carried 15 | 8 10 15 15 Class Distribution -------------------- 61% | Mutant 38% | Scavenger-Mutant Dominant Class ---------------- Mutant | -10/Materials Scavenger-Mutant | -9/Materials Mutant | -9/Storage Resources | -11 -10 -9 -9 ----------- Run | Yrd Mat Mat Sto Matter Collected 2269 | 422 459 708 680 Remotely . | . . . . Salvage Created 2439 | 312 467 980 680 Parts 164 | 20 34 64 46 Haulers Intercepted 3 | . . 2 1 Recyclers Shooed 3 | . . 2 1 Parts Field Recycled . | . . . . Retrieved Matter . | . . . . Parts Self-Destructed . | . . . . Prevented . | . . . . Kills | -11 -10 -9 -9 ------- Run | Yrd Mat Mat Sto Combat Hostiles Destroyed 53 | . 15 19 19 Guns 10 | . . 5 5 Cannons 27 | . 3 12 12 AOE 15 | . 12 1 2 Classes Destroyed 11 | 3 3 4 1 Worker 9 | 4 . 4 1 Builder 2 | . . 1 1 Tunneler 8 | 8 . . . Hauler 3 | . . 2 1 Recycler 7 | 1 2 3 1 Operator 1 | . . 1 . Watcher 5 | . 2 2 1 Swarmer 16 | . 6 7 3 Grunt 25 | . 9 8 8 Duelist 1 | . . . 1 Sentry 11 | . . 4 7 Best Kill Streak 5 | 3 4 5 5 Combat Bots Only 5 | . 3 4 5 Max Kills in Single Turn 3 | 1 3 2 2 Gunslinging . | . . . . Exploded 2 | . 2 1 1 Melee . | . . . . Uniques/NPCs Destroyed . | . . . . Combat | -11 -10 -9 -9 -------- Run | Yrd Mat Mat Sto Hostile Shots Fired 201 | . 41 70 90 Missed 74 | . 21 21 32 Damage Taken 1767 | . 337 680 750 Core 464 | . 61 218 185 Absorbed by Shields . | . . . . Core Remaining (%) 87 | 100 75 . . Volleys Fired 220 | 54 33 76 57 Largest 2 | 2 2 2 2 Hottest 112 | 70 85 112 88 Shots Fired 432 | 108 65 150 109 Gun 259 | 108 31 83 37 Cannon 135 | . 7 63 65 Launcher 38 | . 27 4 7 Special . | . . . . Kinetic 281 | 54 33 92 102 Thermal 113 | 54 5 54 . Explosive 38 | . 27 4 7 Electromagnetic . | . . . . Robot Hit Streak 12 | 6 11 12 8 Robot Miss Streak 7 | 3 3 6 7 Penetration Max . | . . . . Secondary Targets 1 | . . 1 . Max Gunslinging Chain 1 | . . 1 . Shots Hit Robots 258 | 62 23 99 74 Core Hits 161 | 18 32 51 60 Critical Kills 1 | . . 1 . Critical Parts Destroyed 1 | . . 1 . Critical Strikes 9 | 4 . 5 . Burn 6 | 4 . 2 . Meltdown 1 | . . 1 . Destroy 1 | . . 1 . Blast 1 | . . 1 . Melee Attacks 1 | . . . 1 Impact 1 | . . . 1 Slashing . | . . . . Piercing . | . . . . Sneak Attacks . | . . . . Combat Hostiles . | . . . . Follow-up Attacks . | . . . . Damage Inflicted 4696 | 646 963 1599 1488 Guns 1591 | 646 82 569 294 Cannons 1622 | . 102 703 817 Explosions 1432 | . 757 298 377 Melee . | . . . . Ramming 51 | . 22 29 . Kinetic 2151 | 226 146 668 1111 Thermal 1062 | 420 38 604 . Explosive 1432 | . 757 298 377 Electromagnetic . | . . . . Impact . | . . . . Slashing . | . . . . Piercing . | . . . . Highest Corruption . | . . . . Average Corruption . | . . . . Corruption Purged . | . . . . Corruption Blocked . | . . . . Overload Shots . | . . . . Overflow Damage 44 | . 14 30 . Projectiles . | . . . . Explosions 44 | . 14 30 . Melee . | . . . . Knockbacks 28 | . 3 6 19 Impact 1 | . 1 . . Kinetic 25 | . 1 6 18 Secondary 2 | . 1 . 1 Self-Inflicted Damage 283 | . 148 90 45 Shots 10 | . 6 2 2 Rammed 4 | . 1 3 . Targets Rammed 4 | . 1 3 . Kicked . | . . . . Crushed . | . . . . Highest Temperature 270 | 110 108 270 69 Average Temperature 42 | 38 23 55 24 Received Heat Transfer 468 | . 60 225 183 Siege Activations . | . . . . Robots Corrupted . | . . . . Combat Hostiles . | . . . . Parts Fried . | . . . . Impact Corruptions . | . . . . Robots Melted 1 | . . 1 . Combat Hostiles 1 | . . 1 . Parts Melted 6 | . . 6 . Heat Transferred 3071 | 1554 111 1406 . Parts Sabotaged . | . . . . Parts Stolen . | . . . . Parts Stripped . | . . . . Power Chain Reactions . | . . . . Alert | -11 -10 -9 -9 ------- Run | Yrd Mat Mat Sto Peak Influence 680 | 60 356 381 680 Initial 160 | . 3 2 160 Average 203 | 24 107 203 500 Maximum Alert Level 2 | . 1 1 2 Low Security (%) 58 | 100 73 54 6 Level 1 26 | . 26 45 11 Level 2 15 | . . . 82 Level 3 . | . . . . Level 4 . | . . . . Level 5 . | . . . . High Security . | . . . . Max Security . | . . . . Squads Dispatched 9 | . 2 2 5 Investigation 1 | . 1 . . Extermination . | . . . . Reinforcement 4 | . 1 2 1 Assault . | . . . . Garrison 4 | . . . 4 Intercept . | . . . . Searches Triggered . | . . . . Construction Impeded . | . . . . Haulers Reinforced . | . . . . Active Scanning Responses . | . . . . Cargo Convoy Interrupts . | . . . . Stealth | -11 -10 -9 -9 --------- Run | Yrd Mat Mat Sto Distress Signals 5 | . . 3 2 Communications Jammed . | . . . . Distress Signals . | . . . . Times Spotted 84 | . 23 32 29 Peak Tracking Total 6 | . 6 5 5 Tactical Retreats 5 | . . 4 1 Traps | -11 -10 -9 -9 ------- Run | Yrd Mat Mat Sto Traps Triggered . | . . . . Indirectly . | . . . . Trap Hack Attempts . | . . . . Triggered . | . . . . Disarmed . | . . . . Reprogrammed . | . . . . Reused . | . . . . Traps Extracted . | . . . . Installed . | . . . . Triggered . | . . . . Machines | -11 -10 -9 -9 ---------- Run | Yrd Mat Mat Sto Machines Disabled 8 | . 3 2 3 Max in Single Turn 1 | . 1 1 1 Machines Repaired . | . . . . Machines Dismantled . | . . . . Machines Sabotaged . | . . . . Overloaded Fab Kills . | . . . . Hacking | -11 -10 -9 -9 --------- Run | Yrd Mat Mat Sto Machines Accessed 15 | . 8 5 2 Terminals 14 | . 7 5 2 Fabricators . | . . . . Repair Stations . | . . . . Recycling Units 1 | . 1 . . Scanalyzers . | . . . . Garrison Access . | . . . . Total Hacks 40 | . 21 16 3 Successful 21 | . 13 6 2 Failed 19 | . 8 10 1 Catastrophic 2 | . 2 . . Database Lockouts . | . . . . Manual 32 | . 16 14 2 Terminals 39 | . 20 16 3 Fabricators . | . . . . Repair Stations . | . . . . Recycling Units 1 | . 1 . . Scanalyzers . | . . . . Garrison Access . | . . . . Terminal Hacks 14 | . 9 4 1 Record 3 | . 2 1 . Robot Analysis 1 | . 1 . . Open Door 1 | . . . 1 Branch Access Points 1 | . 1 . . Terminal Index 1 | . . 1 . Unreport Threat 5 | . 4 1 . Dispatch Records 1 | . . 1 . Garrison Status 1 | . 1 . . Fabricator Hacks . | . . . . Repair Station Hacks . | . . . . Recycling Unit Hacks 1 | . 1 . . Retrieve Components 1 | . 1 . . Scanalyzer . | . . . . Garrison Access Hacks . | . . . . Unauthorized Hacks 5 | . 2 2 1 Terminals 5 | . 2 2 1 Botnet 5 | . 2 2 1 Fabricators . | . . . . Repair Stations . | . . . . Recycling Units . | . . . . Scanalyzers . | . . . . Garrison Access . | . . . . Data Cores Recovered . | . . . . Used . | . . . . Hacking Detections 11 | . 5 5 1 Full Trace Events 3 | . 2 1 . Feedback Events . | . . . . Feedback Blocked . | . . . . Robot Schematics Acquired . | . . . . Robots Built . | . . . . Authchips . | . . . . Time . | . . . . Total Robot Build Rating . | . . . . Part Schematics Acquired . | . . . . Parts Built . | . . . . Authchips . | . . . . Time . | . . . . Total Part Build Rating . | . . . . Parts Repaired . | . . . . Time . | . . . . Parts Recycled . | . . . . Recycled Matter . | . . . . Retrieved Matter . | . . . . Retrieved Components 10 | . 10 . . Parts Scanalyzed . | . . . . Part Schematics Acquired . | . . . . Parts Damaged . | . . . . Bothacking | -11 -10 -9 -9 ------------ Run | Yrd Mat Mat Sto Used RIF Installer . | . . . . Robots Hacked . | . . . . Non-combat . | . . . . Combat . | . . . . Robot Hacks Applied . | . . . . Relay Couplers Released . | . . . . Fabnet Peak Effective % . | . . . . Robots Rewired . | . . . . Allies Hacked . | . . . . Hacks Repelled . | . . . . Allies | -11 -10 -9 -9 -------- Run | Yrd Mat Mat Sto Total Allies . | . . . . Largest Group . | . . . . Highest-Rated Group . | . . . . Highest-Rated Ally . | . . . . Total Orders . | . . . . Ally Attacks . | . . . . Total Damage . | . . . . Kills . | . . . . Allies Corrupted . | . . . . Allies Melted . | . . . . Intel | -11 -10 -9 -9 ------- Run | Yrd Mat Mat Sto Robot Analysis Total 1 | . 1 . . Derelict Logs Recovered . | . . . . Drone Launches . | . . . . Drone Recoveries . | . . . . Exploration | -11 -10 -9 -9 ------------- Run | Yrd Mat Mat Sto Turns Passed 3187 | 473 1032 1066 616 Spaces Moved 2582 | 374 1072 720 416 Core 5 | 5 . . . Treads . | . . . . Legs . | . . . . Wheels 2577 | 369 1072 720 416 Hover . | . . . . Flight . | . . . . Fastest Speed 50 | 50 80 80 93 Average Speed 87 | 79 81 94 96 Slowest Speed 101 | 100 95 101 101 Overloaded Moves . | . . . . Propulsion Burnouts . | . . . . Robots Hopped . | . . . . Cave-ins Triggered . | . . . . Exploration Rate (%) 45 | 14 99 38 32 Regions Visited 3 Branch Regions 1 Pre-discovered Areas . | . . . . Known Exits Taken 1 | . . 1 . Unknown Exits Taken 2 | 1 1 . . Scrap Searched . | . . . . Spaces Dug 12 | . 12 . . Terrain Destroyed 281 | . 183 49 49 Melee . | . . . . Projectile . | . . . . AOE 281 | . 183 49 49 Terrain Rammed . | . . . . Walls Destroyed . | . . . . Machines Disabled . | . . . . Actions | -11 -10 -9 -9 --------- Run | Yrd Mat Mat Sto Total 3131 | 452 1172 989 518 Wait 154 | 2 33 96 23 Move 2579 | 373 1071 719 416 Hop . | . . . . Pick Up 50 | 12 6 30 2 Fast Attach 18 | 7 4 5 2 Attach 8 | . . 6 2 Detach 1 | . . 1 . Swap 41 | . 10 21 10 Drop 54 | 4 14 32 4 Fire 220 | 54 33 76 57 Melee 1 | . . . 1 Ram 4 | . 1 3 . Kick . | . . . . Crush . | . . . . Escape Stasis . | . . . . Rewire 1 | . . . 1 Trap . | . . . . Miscellaneous . | . . . . Route ------- -11/Scrapyard -10/Materials (discovered 6 exits: *Mat x3 / *Min x2 / [Sub]) -9/Materials -9/Storage History --------- Turn | Location | Event 26 | -11/Scrapyard | Discovered new exit (range 15) 474 | -11/Scrapyard | Entered Materials 475 | -10/Materials | Build established: Mutant 650 | -10/Materials | Discovered new exit (range 15) 811 | -10/Materials | Discovered new exit (range 14) 1067 | -10/Materials | Discovered new exit (range 16) 1280 | -10/Materials | Discovered new exit (range 14) 1341 | -10/Materials | Discovered new exit (range 13) 1421 | -10/Materials | Discovered new exit (range 16) 1457 | -10/Materials | Identified exit to Mines 1506 | -10/Materials | Entered another Materials area 1506 | -9/Materials | Evolved 2 slots: Propulsion x1, Utility x1 1927 | -9/Materials | Build established: Scavenger-Mutant 2512 | -9/Materials | Core integrity fell below 50% 2525 | -9/Materials | Discovered new exit (range 9) 2571 | -9/Materials | Identified exit to Storage 2572 | -9/Materials | Entered Storage 2590 | -9/Storage | Garrison activated, responded to threat 2975 | -9/Storage | Core integrity fell below 20% 3132 | -9/Storage | Build established: Mutant 3168 | -9/Storage | Garrison activated, responded to threat 3188 | -9/Storage | Destroyed by G-34 Mercenary with Small Laser Last Messages --------------- Trojan loaded successfully. Testing... Terminal linked with 0 systems. Awaiting botnet instructions. 03041_ Dropped Wheel. 03041_ W-16 Scout sends out distress signal. 03107_ Dropped Mni. Grenade Launcher. 03108_ Acquired Prototype Energy Gun. 03108_ Identified Imp. EM Shotgun. 03110_ Dropped Imp. EM Shotgun. 03111_ Acquired Mni. Grenade Launcher. 03113_ K-01 Serf destroyed. 03116_ W-16 Scout destroyed. 03116_ U-05 Engineer destroyed. 03120_ The unstable cave ceiling collapses. 03168_ R-06 Scavenger calls for garrison support. 03168_ ALERT: Activating Garrison Access S001. 03170_ R-06 Scavenger knocked back. 03172_ R-06 Scavenger destroyed. 03182_ Acquired 76 matter. Map ----- +----------------------------------------------------+ | ????????????????????????????? | | ????????????????????????????? | | ????????????????????????????? | | ????????????????????????????? | | ????????????????????????????? | | ????????????????????????????? | | ????????????????????????????? | | ????????????????????????????? | | ????????????????????????????? | | ????????????????????????????? | | ????????????????????????????? | | ????????????????????????????? | | ????????????????????????????? | | ????????????????????????????? | | ????????????????????????????? | | ????????????????????????????? | | ????????????????????????????? | | ????????????????????????????? | | ????????????????????????????? | | ????????????????????????????? | | ??????????x?????!!??????????? | | ???#+##+#???? =!! ?????????? | | ???# ### gg ??????????? | | ???# ??????????????? | | ???# ??????????????????? | | ???#@ #?????????????????????? | | ???# r#?????????????????????? | | ???# +?????????????????????? | | ???# ##?????????????????????? | | ???# #??????????????????????? | | ???# #??????x???????????????? | | ???# #??????????????????????? | | ???# #??????????????????????? | | ???# #??????????????????????? | | ???# #??????????????????????? | | ???# #???#+#????????????????? | | ???# #???# #????????????????? | | ???# #???# #########???????## | | ???# #???# ## #???????# | | ??## ##?## ## """" #???????# | | ??# ### # """" #???????# | | ??# + """" #???????# | | ??# ### # """" #???????# | | ??##+##?## ## #???????# | | ?????????# ##+####+####????# | | ?????????# #??# ##T####?# | | ?????????# #?## ##[!!!#?#! | | ????????## ### #[ !!#?## | | ????"" / + *!!#??# | | ????????## ###### ######??# | +----------------------------------------------------+ Best States ------------- Heat Dissipation 28 Energy Generation 14 Energy Capacity 280 Matter Stores 300 Matter Capacity 300 Sight Range 16 Robot Scan Range 14 Terrain Scan Density 10 Evasion (%) 44 Item Schematics ----------------- None Robot Schematics ------------------ None Fabricated ------------ Nothing Alien Tech Used ----------------- None Achievements -------------- More Dakka Please Challenges ------------ None Game ------ Seed BombardmentRainbowNanosword Manual? 0 Play Time 00:44:05 Cumulative 11.4 hours Start 2024.08.03 @ 20:25:06 End 2024.08.06 @ 11:47:03 Sessions 3 Manual Loads 0 Difficulty Rogue Special Mode None Game No. 13 Rogue 13 Adventurer 0 Explorer 0 Win Type - Total 0 Types 0/0/0/0/0/0/0/0/0 Lore% 9 Gallery% 18 Achievement% 16 Wizard Run 0 Options --------- Layout 2 ASCII 0 Keyboard 1 Movement Arrows Keybinds 0 Fullscreen 2 Font 20/SmallcapsGlow Map View 56x54 Zoom Use 0% Tactical HUD 1 Map Filters NONE Filters NONE Steam X RUN: e17ad52b-e045-4533-aca1-940c074fd25d